bitfinex/quotes_BTCUSD_20250624
["timestamp","ask_amount","ask_price","bid_price","bid_amount"]
[1750748069574,0.00305459,105880.0,105870.0,0.38851646]
[1750748069783,0.00305459,105880.0,105870.0,0.37907092]
[1750748070404,0.00305459,105880.0,105870.0,0.19016]
[1750748070830,0.00305459,105880.0,105870.0,0.17426]
[1750748071669,0.00305459,105880.0,105870.0,0.15776]
[1750748072967,0.00305459,105880.0,105870.0,0.17356]
[1750748073185,0.00305459,105880.0,105870.0,0.18956]
[1750748074376,0.00305459,105880.0,105870.0,0.37847092]
[1750748074589,0.00305459,105880.0,105870.0,0.40680647]
[1750748074827,0.00305459,105880.0,105870.0,0.67757042]
[1750748075202,0.00305459,105880.0,105870.0,0.68701543]
[1750748075412,0.00305459,105880.0,105870.0,0.40680656]
[1750748075619,0.00305459,105880.0,105870.0,0.41625148]
[1750748075825,0.00305459,105880.0,105870.0,0.39736155]
[1750748076032,0.00305459,105880.0,105870.0,0.40680665]
[1750748076224,0.00305459,105880.0,105870.0,0.41625166]
[1750748076440,0.00305459,105880.0,105870.0,0.40680665]
[1750748076623,0.00305459,105880.0,105870.0,0.39736164]
[1750748076800,0.00305459,105880.0,105870.0,0.41625175]
[1750748077503,0.00305459,105880.0,105870.0,0.39736164]
[1750748077696,0.00305459,105880.0,105870.0,0.406807]
[1750748077890,0.00305459,105880.0,105870.0,0.41625218]
[1750748078097,0.00305459,105880.0,105870.0,0.49116699]
[1750748078597,0.00305459,105880.0,105870.0,0.50061217]
[1750748079065,0.00305459,105880.0,105870.0,0.50061226]
[1750748079514,0.00305459,105880.0,105870.0,0.51005744]
[1750748079725,0.00305459,105880.0,105870.0,0.50061226]
[1750748079942,0.00305459,105880.0,105870.0,0.28336526]
[1750748080165,0.00305459,105880.0,105870.0,0.26736526]
[1750748081223,0.00305459,105880.0,105870.0,0.4911669]
[1750748081433,0.00305459,105880.0,105870.0,0.49116699]
[1750748081816,0.00305459,105880.0,105870.0,0.50061226]
[1750748082271,0.00305459,105880.0,105870.0,0.46309016]
[1750748082482,0.00305459,105880.0,105870.0,0.47253534]
[1750748082693,0.00305459,105880.0,105870.0,0.46309016]
[1750748082874,0.00305459,105880.0,105870.0,0.47253534]
[1750748084466,0.00305459,105880.0,105870.0,0.46309016]
[1750748084895,0.00305459,105880.0,105870.0,0.45364489]
[1750748085117,0.00305459,105880.0,105870.0,0.46309016]
[1750748085586,0.00305459,105880.0,105870.0,0.47253534]
[1750748086089,0.00305459,105880.0,105870.0,0.46309016]
[1750748086294,0.00305459,105880.0,105870.0,0.49120636]
[1750748086506,0.00305459,105880.0,105870.0,0.50065146]
[1750748086724,0.00305459,105880.0,105870.0,0.50065154]
[1750748086925,0.00305459,105880.0,105870.0,0.51009664]
[1750748087154,0.00305459,105880.0,105870.0,0.50065154]
[1750748087368,0.00305459,105880.0,105870.0,0.51009664]
[1750748087581,0.00305459,105880.0,105870.0,0.76218896]
[1750748088638,0.00305459,105880.0,105870.0,0.48198009]
[1750748088849,0.00305459,105880.0,105870.0,0.32422018]
[1750748089060,0.00305459,105880.0,105870.0,0.48193965]
[1750748090735,0.00305459,105880.0,105870.0,0.76214852]
[1750748091776,0.00305459,105880.0,105870.0,0.47249473]
[1750748092409,0.00305459,105880.0,105870.0,0.46304972]
[1750748092619,0.00305459,105880.0,105870.0,0.44411962]
[1750748092826,0.00305459,105880.0,105870.0,0.46301043]
[1750748093041,0.00305459,105880.0,105870.0,0.4724557]
[1750748093250,0.00305459,105880.0,105870.0,0.45356507]
[1750748093456,0.00305459,105880.0,105870.0,0.46301043]
[1750748093879,0.00305459,105880.0,105870.0,0.4724557]
[1750748094086,0.00305459,105880.0,105870.0,0.48190088]
[1750748094300,0.00305459,105880.0,105870.0,0.4724557]
[1750748094691,0.00305459,105880.0,105870.0,0.32422088]
[1750748094891,0.00305459,105880.0,105870.0,0.4724557]
[1750748095067,0.00305459,105880.0,105870.0,0.3147757]
[1750748095271,0.00305459,105880.0,105870.0,0.48190035]
[1750748095680,0.00305459,105880.0,105870.0,0.48189982]
[1750748097791,0.00305459,105880.0,105870.0,0.27699408]
[1750748098224,0.41006532,105880.0,105870.0,0.09383192]
[1750748098225,0.41006532,105880.0,105870.0,0.25151192]
[1750748098452,0.41006532,105880.0,105870.0,0.19522876]
[1750748100150,0.41006532,105880.0,105870.0,0.03754876]
[1750748100416,0.37876532,105880.0,105860.0,0.09403192]
[1750748100578,0.40771073,105870.0,105860.0,0.19542876]
[1750748101358,0.40771073,105870.0,105860.0,0.0002]
[1750748101567,0.40771073,105870.0,105860.0,0.15788]
[1750748102620,0.12750186,105870.0,105860.0,0.0002]
[1750748102838,0.40771073,105870.0,105860.0,0.0002]
[1750748103525,0.39151073,105870.0,105860.0,0.0002]
[1750748104105,0.11130186,105870.0,105860.0,0.0002]
[1750748105098,0.09550186,105870.0,105860.0,0.0002]
[1750748105501,0.11150186,105870.0,105860.0,0.0002]
[1750748108785,0.40731073,105870.0,105860.0,0.0002]
[1750748109882,0.11150186,105870.0,105860.0,0.0002]
[1750748110091,0.39171073,105870.0,105860.0,0.0002]
[1750748116263,0.40691073,105870.0,105860.0,0.0002]
[1750748116678,0.46670186,105870.0,105860.0,0.0002]
[1750748116891,0.74691073,105870.0,105860.0,0.0002]
[1750748117580,0.74791073,105870.0,105860.0,0.0002]
[1750748117799,0.73271073,105870.0,105860.0,0.0002]
[1750748118017,0.74781073,105870.0,105860.0,0.0002]
[1750748118910,0.74881073,105870.0,105860.0,0.0002]
[1750748119771,0.75181073,105870.0,105860.0,0.0002]
[1750748125183,1.06035445,105870.0,105860.0,0.0002]
[1750748125407,1.05090935,105870.0,105860.0,0.0002]
[1750748125630,1.07931735,105870.0,105860.0,0.0002]
[1750748125853,1.24367793,105870.0,105860.0,0.0002]
[1750748126077,1.24367784,105870.0,105860.0,0.0002]
[1750748126297,1.23423248,105870.0,105860.0,0.0002]
[1750748126715,1.2531232,105870.0,105860.0,0.0002]
[1750748126927,0.93513342,105870.0,105860.0,0.0001]
[1750748127130,0.91617034,105870.0,105860.0,0.0001]
[1750748127352,0.90672542,105870.0,105860.0,0.0001]
[1750748127555,0.89728068,105870.0,105860.0,0.0001]
[1750748127766,0.73571073,105870.0,105860.0,0.0001]
[1750748129489,0.45550186,105870.0,105860.0,0.0001]
[1750748129737,0.73571073,105870.0,105860.0,0.0001]
[1750748132833,0.45550186,105870.0,105860.0,0.0001]
[1750748133045,0.76411873,105870.0,105860.0,0.0001]
[1750748133490,0.82357192,105870.0,105860.0,0.0001]
[1750748133741,0.85197892,105870.0,105860.0,0.0001]
[1750748134164,0.80757192,105870.0,105860.0,0.0001]
[1750748134370,0.80757192,105870.0,105830.0,0.35586972]
[1750748134371,0.34,105860.0,105830.0,0.35586972]
[1750748134618,0.75767073,105860.0,105840.0,0.00944813]
[1750748134856,0.75767073,105860.0,105840.0,0.00944822]
[1750748135306,0.75767073,105860.0,105830.0,0.56374822]
[1750748135515,0.75767073,105860.0,105840.0,0.00944822]
[1750748135721,0.75767073,105860.0,105830.0,0.56374822]
[1750748135930,0.75767073,105860.0,105840.0,0.00944822]
[1750748136139,0.75767073,105860.0,105830.0,0.56374822]
[1750748136380,0.75767073,105860.0,105830.0,0.57319715]
[1750748136587,0.77287073,105860.0,105830.0,0.56374875]
[1750748136790,0.77287073,105860.0,105830.0,0.28353988]
[1750748137003,0.77287073,105860.0,105830.0,0.29298837]
[1750748137232,0.77287073,105860.0,105830.0,0.20787903]
[1750748137450,0.77287073,105860.0,105840.0,0.0319]
[1750748138203,0.77287073,105860.0,105840.0,0.03172501]
[1750748140158,0.28020887,105850.0,105830.0,0.0165]
[1750748140407,0.39131073,105850.0,105830.0,0.0165]
[1750748140616,0.40791073,105850.0,105830.0,0.02532389]
[1750748141035,0.40791073,105850.0,105830.0,0.0165]
[1750748141310,0.39131073,105850.0,105830.0,0.0165]
[1750748141532,0.39131073,105850.0,105830.0,0.0324]
[1750748141957,0.41091073,105850.0,105830.0,0.0165]
[1750748142853,0.41091073,105850.0,105830.0,0.00882458]
[1750748142854,0.56041774,105840.0,105830.0,0.00882458]
[1750748143068,1.29512738,105840.0,105830.0,0.00882458]
[1750748143276,6.22225217,105840.0,105830.0,0.00882458]
[1750748143484,6.42443747,105840.0,105830.0,0.00882458]
[1750748143699,6.35176914,105840.0,105830.0,0.00882458]
[1750748143908,6.49723909,105840.0,105830.0,0.00882458]
[1750748144122,6.30163358,105840.0,105830.0,0.00928596]
[1750748144328,6.32428077,105840.0,105830.0,0.00928596]
[1750748145603,6.32828077,105840.0,105830.0,0.00928596]
[1750748145807,6.30563358,105840.0,105830.0,0.00928596]
[1750748146025,5.74521584,105840.0,105830.0,0.00928596]
[1750748146276,6.30563358,105840.0,105830.0,0.00928596]
[1750748147161,1.42684955,105840.0,105830.0,0.00928596]
[1750748147373,0.94708068,105840.0,105830.0,0.00928596]
[1750748147621,1.01061815,105840.0,105830.0,0.00928596]
[1750748147843,1.04303515,105840.0,105830.0,0.00928596]
[1750748148091,1.04303515,105840.0,105830.0,0.00927447]
[1750748148092,1.08903523,105840.0,105830.0,0.00927447]
[1750748148567,0.99917073,105840.0,105830.0,0.00927447]
[1750748148784,1.00117073,105840.0,105830.0,0.00927447]
[1750748149472,0.95117073,105840.0,105830.0,0.00927447]
[1750748149703,1.00117073,105840.0,105830.0,0.00927447]
[1750748150134,1.00117073,105840.0,105830.0,0.00926828]
[1750748150810,0.95117073,105840.0,105830.0,0.00926828]
[1750748151229,1.01061815,105840.0,105830.0,0.00926828]
[1750748151436,0.97958773,105840.0,105830.0,0.00926828]
[1750748151654,0.66747886,105840.0,105830.0,0.00046138]
[1750748151873,0.91927073,105840.0,105830.0,0.00046138]
[1750748152283,0.28020887,105830.0,105820.0,0.0158]
[1750748152490,0.09550186,105830.0,105820.0,0.01593836]
[1750748154182,0.09650186,105830.0,105820.0,0.01593836]
[1750748154574,0.09750186,105830.0,105820.0,0.01593836]
[1750748155340,0.09750186,105830.0,105820.0,0.22063854]
[1750748155555,0.002,105830.0,105820.0,0.23008846]
[1750748155742,0.002,105830.0,105820.0,0.23953829]
[1750748155989,0.002,105830.0,105820.0,0.23008846]
[1750748156203,0.002,105830.0,105820.0,0.22063854]
[1750748156415,0.002,105830.0,105820.0,0.23008854]
[1750748156628,0.002,105830.0,105820.0,0.22063854]
[1750748156833,0.002,105830.0,105820.0,0.23953846]
[1750748157046,0.002,105830.0,105820.0,0.23008854]
[1750748157257,0.002,105830.0,105820.0,0.22063854]
[1750748157469,0.002,105830.0,105820.0,0.23008854]
[1750748157677,0.002,105830.0,105820.0,0.22063854]
[1750748161183,0.002,105830.0,105820.0,0.23008837]
[1750748161385,0.002,105830.0,105820.0,0.52919627]
[1750748161769,0.002,105830.0,105820.0,0.68683627]
[1750748162018,0.002,105830.0,105820.0,0.40662749]
[1750748162225,0.002,105830.0,105820.0,0.41607687]
[1750748162477,0.002,105830.0,105820.0,0.40662749]
[1750748162949,0.002,105830.0,105820.0,0.39717802]
[1750748163176,0.002,105830.0,105820.0,0.41607705]
[1750748163394,0.002,105830.0,105820.0,0.40662758]
[1750748163617,0.002,105830.0,105820.0,0.41607705]
[1750748164313,0.002,105830.0,105820.0,0.40662758]
[1750748164541,0.002,105830.0,105820.0,0.38768854]
[1750748164721,0.002,105830.0,105820.0,0.39713846]
[1750748165167,0.002,105830.0,105820.0,0.38768854]
[1750748165346,0.002,105830.0,105820.0,0.39713846]
[1750748165618,0.002,105830.0,105820.0,0.40658829]
[1750748165835,0.002,105830.0,105820.0,0.39713846]
[1750748166538,0.002,105830.0,105820.0,0.41603794]
[1750748166714,0.002,105830.0,105820.0,0.4254875]
[1750748167158,0.002,105830.0,105820.0,0.4160375]
[1750748167354,0.002,105830.0,105820.0,0.40658803]
[1750748167696,0.002,105830.0,105820.0,0.41603732]
[1750748168442,0.002,105830.0,105820.0,0.40658776]
[1750748168655,0.002,105830.0,105820.0,0.39713811]
[1750748168862,0.002,105830.0,105820.0,0.40658776]
[1750748169260,0.002,105830.0,105820.0,0.38768837]
[1750748169718,0.002,105830.0,105820.0,0.37823854]
[1750748169923,0.002,105830.0,105820.0,0.19868836]
[1750748170138,0.002,105830.0,105820.0,0.20813828]
[1750748170351,0.002,105830.0,105820.0,0.41603803]
[1750748171390,0.002,105830.0,105820.0,0.41603759]
[1750748171595,0.002,105830.0,105820.0,0.42548706]
[1750748172102,0.002,105830.0,105820.0,0.41603759]
[1750748172309,0.002,105830.0,105820.0,0.42548706]
[1750748172515,0.002,105830.0,105820.0,0.41603714]
[1750748172716,0.002,105830.0,105820.0,0.40658767]
[1750748172916,0.002,105830.0,105820.0,0.41603714]
[1750748173126,0.002,105830.0,105820.0,0.40658767]
[1750748173349,0.002,105830.0,105820.0,0.19868836]
[1750748173550,0.002,105830.0,105820.0,0.20813828]
[1750748173758,0.002,105830.0,105820.0,0.21758811]
[1750748173969,0.002,105830.0,105820.0,0.41603803]
[1750748174173,0.002,105830.0,105820.0,0.42548768]
[1750748174436,0.002,105830.0,105820.0,0.42548724]
[1750748174635,0.002,105830.0,105820.0,0.40658803]
[1750748174833,0.002,105830.0,105820.0,0.41603768]
[1750748175146,0.002,105830.0,105820.0,0.42548724]
[1750748175357,0.002,105830.0,105820.0,0.41603768]
[1750748175916,0.002,105830.0,105820.0,0.40658803]
[1750748176456,0.002,105830.0,105820.0,0.41603768]
[1750748176661,0.002,105830.0,105820.0,0.42548724]
[1750748176990,0.002,105830.0,105820.0,0.41603768]
[1750748177476,0.002,105830.0,105820.0,0.42548724]
[1750748177702,0.002,105830.0,105820.0,0.41603768]
[1750748177906,0.002,105830.0,105820.0,0.40658803]
[1750748178024,0.002,105830.0,105820.0,0.41603768]
[1750748178826,0.002,105830.0,105820.0,0.40658803]
[1750748179033,0.002,105830.0,105820.0,0.39713829]
[1750748179272,0.002,105830.0,105820.0,0.40658794]
[1750748179506,0.002,105830.0,105820.0,0.40658803]
[1750748180136,0.002,105830.0,105820.0,0.39713829]
[1750748180728,0.002,105830.0,105820.0,0.40658803]
[1750748180999,0.002,105830.0,105820.0,0.38764846]
[1750748181344,0.002,105830.0,105820.0,0.3970982]
[1750748181751,0.002,105830.0,105820.0,0.40654767]
[1750748181954,0.002,105830.0,105820.0,0.40654785]
[1750748182160,0.002,105830.0,105820.0,0.42544679]
[1750748182366,0.002,105830.0,105820.0,0.72019651]
[1750748184667,0.002,105830.0,105820.0,0.43998764]
[1750748184830,0.002,105830.0,105820.0,0.72019651]
[1750748187339,0.002,105830.0,105820.0,0.43998764]
[1750748187545,0.002,105830.0,105820.0,0.72019651]
[1750748192847,0.002,105830.0,105820.0,0.74860451]
[1750748199944,0.002,105830.0,105820.0,0.46839564]
[1750748200150,0.002,105830.0,105820.0,0.74860451]
[1750748202383,0.002,105830.0,105820.0,0.99483074]
[1750748203465,0.002,105830.0,105820.0,1.0903326]
[1750748204185,0.001,105830.0,105820.0,1.0903326]
[1750748204686,0.001,105830.0,105820.0,1.16515191]
[1750748205627,0.0308,105850.0,105840.0,0.19841251]
[1750748205872,0.0304,105860.0,105850.0,0.18894662]
[1750748206136,0.29361755,105860.0,105850.0,0.19839395]
[1750748206345,0.0304,105860.0,105850.0,0.19839395]
[1750748206779,0.0304,105860.0,105850.0,0.18894662]
[1750748207899,0.0324,105860.0,105850.0,0.18794662]
[1750748208351,0.0354,105860.0,105850.0,0.18794662]
[1750748209052,0.0354,105860.0,105840.0,0.65548276]
[1750748209485,0.0165,105850.0,105840.0,0.65548276]
[1750748209707,0.0165,105850.0,105840.0,0.36534046]
[1750748210167,0.0165,105850.0,105840.0,0.37478823]
[1750748211220,0.0175,105850.0,105840.0,0.37478823]
[1750748212012,0.0185,105850.0,105840.0,0.37478823]
[1750748214060,0.0185,105850.0,105840.0,0.36534046]
[1750748214289,0.0185,105850.0,105840.0,0.66493044]
[1750748214290,0.002,105850.0,105840.0,0.66493044]
[1750748214882,0.002,105850.0,105840.0,0.65548276]
[1750748216056,0.002,105850.0,105840.0,0.66493044]
[1750748216442,0.002,105850.0,105840.0,0.65548276]
[1750748216959,0.002,105850.0,105840.0,0.64603499]
[1750748217411,0.002,105850.0,105840.0,0.65548276]
[1750748217634,0.002,105850.0,105840.0,0.64603499]
[1750748218048,0.002,105850.0,105840.0,0.65548276]
[1750748218254,0.002,105850.0,105840.0,0.64603499]
[1750748218542,0.002,105850.0,105840.0,0.65548276]
[1750748218761,0.002,105850.0,105840.0,0.64603499]
[1750748219615,0.002,105850.0,105840.0,0.65548276]
[1750748220463,0.002,105850.0,105840.0,0.64603499]
[1750748220669,0.002,105850.0,105840.0,0.65548276]
[1750748220802,0.002,105850.0,105840.0,0.66493044]
[1750748221006,0.002,105850.0,105840.0,0.65548276]
[1750748222917,0.002,105850.0,105840.0,0.64603517]
[1750748223123,0.002,105850.0,105840.0,0.64603508]
[1750748224184,0.002,105850.0,105840.0,0.65548294]
[1750748224585,0.002,105850.0,105840.0,0.63658713]
[1750748224799,0.002,105850.0,105840.0,0.64603517]
[1750748225045,0.034,105850.0,105840.0,0.18896447]
[1750748225282,0.034,105850.0,105840.0,0.34628447]
[1750748226085,0.0185,105850.0,105840.0,0.35573269]
[1750748226790,0.0185,105850.0,105840.0,0.37462877]
[1750748227008,0.0185,105850.0,105840.0,0.39352431]
[1750748227150,0.002,105850.0,105840.0,0.67421893]
[1750748227362,0.002,105850.0,105840.0,0.6553233]
[1750748227562,0.002,105850.0,105840.0,0.37462877]
[1750748228195,0.002,105850.0,105840.0,0.38407663]
[1750748228432,0.002,105850.0,105840.0,0.63779327]
[1750748228634,0.0174,105850.0,105840.0,0.63779327]
[1750748228855,0.0174,105850.0,105840.0,0.37462886]
[1750748229056,0.0174,105850.0,105840.0,0.34628447]
[1750748229198,0.0174,105850.0,105840.0,0.6188971]
[1750748229538,0.0174,105850.0,105840.0,0.63779327]
[1750748230117,0.0174,105850.0,105840.0,0.62834523]
[1750748230528,0.0174,105850.0,105840.0,0.36518082]
[1750748230735,0.0174,105850.0,105840.0,0.62834523]
[1750748231299,0.0174,105850.0,105840.0,0.35573269]
[1750748231523,0.0174,105850.0,105840.0,0.6188971]
[1750748232124,0.0174,105850.0,105840.0,0.63779327]
[1750748232533,0.0174,105850.0,105840.0,0.60944888]
[1750748232905,0.0174,105850.0,105840.0,0.62834523]
[1750748233110,0.0174,105850.0,105840.0,0.63779327]
[1750748233757,0.002,105850.0,105840.0,0.91985313]
[1750748234006,0.002,105850.0,105840.0,1.06069584]
[1750748234256,0.002,105850.0,105840.0,1.40069584]
[1750748234466,0.002,105850.0,105840.0,1.47551515]
[1750748234897,0.001,105850.0,105840.0,1.47551515]
[1750748235122,0.001,105850.0,105840.0,1.47651515]
[1750748235346,0.001,105850.0,105840.0,1.50529129]
[1750748235572,0.0163,105870.0,105860.0,0.18892092]
[1750748235802,0.0163,105870.0,105860.0,0.60936533]
[1750748236264,0.0163,105870.0,105860.0,0.61881176]
[1750748236503,0.0163,105870.0,105860.0,0.34620092]
[1750748236942,0.0173461,105870.0,105860.0,0.34620092]
[1750748237648,0.0173461,105870.0,105860.0,0.15728]
[1750748237863,0.0325,105860.0,105850.0,0.18894662]
[1750748238084,0.0325,105860.0,105850.0,0.34618662]
[1750748238307,0.0164,105860.0,105850.0,0.35563386]
[1750748238549,0.0164,105860.0,105850.0,0.36508101]
[1750748238783,0.0164,105860.0,105850.0,0.37452789]
[1750748239207,0.12754796,105870.0,105860.0,0.18892877]
[1750748240283,0.12754796,105870.0,105860.0,0.1983752]
[1750748240497,0.11124796,105870.0,105860.0,0.3556152]
[1750748240702,0.11224796,105870.0,105860.0,0.34616877]
[1750748240834,0.12774796,105870.0,105860.0,0.18892877]
[1750748241042,0.11224796,105870.0,105860.0,0.35557511]
[1750748241238,0.12804796,105870.0,105860.0,0.1572]
[1750748241490,0.0177461,105870.0,105860.0,0.3555752]
[1750748241690,0.0177461,105870.0,105860.0,0.34612877]
[1750748241886,0.0332461,105870.0,105860.0,0.34612877]
[1750748242711,0.0322461,105870.0,105860.0,0.1572]
[1750748242912,0.31286625,105870.0,105860.0,0.1582]
[1750748243117,0.0322461,105870.0,105860.0,0.1582]
[1750748243238,0.0312461,105870.0,105860.0,0.1582]
[1750748243452,0.31186625,105870.0,105860.0,0.1582]
[1750748243808,0.0312461,105870.0,105860.0,0.1592]
[1750748245908,0.0312461,105870.0,105860.0,0.34812877]
[1750748246121,0.0157461,105870.0,105860.0,0.34812877]
[1750748246254,0.0157461,105870.0,105860.0,0.35757503]
[1750748246467,4.61e-05,105870.0,105860.0,0.35757503]
[1750748247283,4.61e-05,105870.0,105860.0,0.36702102]
[1750748247481,4.61e-05,105870.0,105860.0,0.35757503]
[1750748247730,4.61e-05,105870.0,105860.0,0.3670212]
[1750748248730,4.61e-05,105870.0,105860.0,0.37646728]
[1750748248933,4.61e-05,105870.0,105860.0,0.39296728]
[1750748250060,4.61e-05,105870.0,105860.0,0.40241327]
[1750748250713,4.61e-05,105870.0,105860.0,0.39296728]
[1750748250981,4.61e-05,105870.0,105860.0,0.40241318]
[1750748252034,4.61e-05,105870.0,105860.0,0.41811318]
[1750748252246,4.61e-05,105870.0,105860.0,0.42755899]
[1750748252746,4.61e-05,105870.0,105860.0,0.40866728]
[1750748252953,4.61e-05,105870.0,105860.0,0.39296728]
[1750748253461,4.61e-05,105870.0,105860.0,0.37407503]
[1750748253672,4.61e-05,105870.0,105860.0,0.35757511]
[1750748254730,4.61e-05,105870.0,105860.0,0.3575752]
[1750748255148,4.61e-05,105870.0,105860.0,0.36702154]
[1750748256037,4.61e-05,105870.0,105860.0,0.37646771]
[1750748256240,4.61e-05,105870.0,105860.0,0.3764678]
[1750748257129,4.61e-05,105870.0,105860.0,0.38591397]
[1750748258192,0.01595043,105870.0,105860.0,0.38591397]
[1750748258398,4.61e-05,105870.0,105860.0,0.41185996]
[1750748258600,4.61e-05,105870.0,105860.0,0.40241397]
[1750748258810,4.61e-05,105870.0,105860.0,0.41185961]
[1750748259011,4.61e-05,105870.0,105860.0,0.40241362]
[1750748259152,4.61e-05,105870.0,105860.0,0.39296754]
[1750748259576,4.61e-05,105870.0,105860.0,0.35757511]
[1750748261034,4.61e-05,105870.0,105860.0,0.34812877]
[1750748261465,0.0164461,105870.0,105860.0,0.34812877]
[1750748262210,0.0164461,105870.0,105860.0,0.3575752]
[1750748262420,0.0164961,105870.0,105860.0,0.36702154]
[1750748262632,0.01594838,105870.0,105860.0,0.36702154]
[1750748263107,9.61e-05,105870.0,105860.0,0.39536005]
[1750748263332,9.61e-05,105870.0,105860.0,0.39535952]
[1750748263544,9.61e-05,105870.0,105860.0,0.40131362]
[1750748263756,9.61e-05,105870.0,105860.0,0.39186754]
[1750748264387,9.61e-05,105870.0,105860.0,0.40131362]
[1750748264860,9.61e-05,105870.0,105860.0,0.39186754]
[1750748265100,9.61e-05,105870.0,105860.0,0.7069794]
[1750748266595,9.61e-05,105870.0,105860.0,0.42635925]
[1750748266833,9.61e-05,105870.0,105860.0,0.7069794]
[1750748268815,9.61e-05,105870.0,105860.0,0.42635925]
[1750748269030,9.61e-05,105870.0,105860.0,0.7069794]
[1750748270402,9.61e-05,105870.0,105860.0,0.42635925]
[1750748270633,9.61e-05,105870.0,105860.0,0.7069794]
[1750748271704,9.61e-05,105870.0,105860.0,1.15702211]
[1750748271930,9.61e-05,105870.0,105860.0,1.23184142]
[1750748272111,9.61e-05,105870.0,105860.0,1.26023642]
[1750748275264,9.61e-05,105870.0,105860.0,1.58245657]
[1750748275468,9.61e-05,105870.0,105860.0,1.87865657]
[1750748275956,9.61e-05,105870.0,105860.0,1.80383726]
[1750748276181,9.61e-05,105870.0,105860.0,1.87886134]
[1750748276618,9.61e-05,105870.0,105860.0,1.80383726]
[1750748276760,9.61e-05,105870.0,105860.0,1.80283726]
[1750748277174,0.0010961,105870.0,105860.0,1.88485641]
[1750748277379,0.0010961,105870.0,105860.0,1.88385641]
[1750748277643,0.0010961,105870.0,105860.0,1.89385641]
[1750748279721,0.0010961,105870.0,105860.0,1.61323626]
[1750748280376,0.0010961,105870.0,105860.0,1.63215626]
[1750748280612,0.0010961,105870.0,105860.0,1.35129611]
[1750748280821,0.0010961,105870.0,105860.0,1.63191626]
[1750748286939,0.0010961,105870.0,105860.0,1.91253641]
[1750748287384,0.0010961,105870.0,105860.0,1.63191626]
[1750748290309,0.0010961,105870.0,105860.0,1.61299626]
[1750748293060,0.0010961,105870.0,105860.0,1.33237611]
[1750748293451,0.0010961,105870.0,105860.0,1.61299626]
[1750748294642,0.0010961,105870.0,105860.0,1.89361641]
[1750748298254,0.0010961,105870.0,105860.0,1.53797711]
[1750748300326,0.0010961,105870.0,105860.0,1.63159663]
[1750748300529,0.0010961,105870.0,105860.0,1.65051663]
[1750748300863,0.0010961,105870.0,105860.0,1.36989648]
[1750748301070,0.0010961,105870.0,105860.0,1.65051663]
[1750748305622,0.00023286,105870.0,105860.0,1.45195663]
[1750748305827,0.00023286,105870.0,105860.0,1.65023663]
[1750748308329,0.00023286,105870.0,105860.0,1.89553104]
[1750748310429,0.00023286,105870.0,105860.0,2.15848832]
[1750748310654,0.00023286,105870.0,105860.0,2.68440288]
[1750748310655,5.086e-05,105870.0,105860.0,2.68440288]
[1750748310857,5.086e-05,105870.0,105860.0,2.19593613]
[1750748312055,5.086e-05,105870.0,105860.0,2.98480797]
[1750748312259,5.086e-05,105870.0,105860.0,1.96781843]
[1750748312471,5.086e-05,105870.0,105860.0,1.40706429]
[1750748312673,5.086e-05,105870.0,105860.0,1.96781843]
[1750748314021,5.086e-05,105870.0,105860.0,2.66781843]
[1750748314217,5.086e-05,105870.0,105860.0,2.91781843]
[1750748314429,0.00015459,105880.0,105870.0,0.62190732]
[1750748314657,0.00061589,105880.0,105870.0,1.52875387]
[1750748315073,0.00061589,105880.0,105870.0,1.43492332]
[1750748315317,0.00061589,105880.0,105870.0,1.41600332]
[1750748316319,0.00061589,105880.0,105870.0,1.42300332]
[1750748316743,0.00061589,105880.0,105870.0,1.51675358]
[1750748317102,0.00061589,105880.0,105870.0,1.81295358]
[1750748317315,0.00061589,105880.0,105870.0,1.81795358]
[1750748318000,0.00061589,105880.0,105870.0,1.25719944]
[1750748318201,0.00061589,105880.0,105870.0,1.81795358]
[1750748318742,0.00061589,105880.0,105870.0,1.85527065]
[1750748319589,0.00061589,105880.0,105870.0,2.55527065]
[1750748319993,0.00061589,105880.0,105870.0,2.83564772]
[1750748320623,0.00013695,105880.0,105870.0,2.83564772]
[1750748320934,0.00013695,105880.0,105870.0,2.85456772]
[1750748321422,0.00013695,105880.0,105870.0,2.85835272]
[1750748321822,0.00013695,105880.0,105870.0,2.85335272]
[1750748322035,0.00013695,105880.0,105870.0,2.57297565]
[1750748322241,0.00013695,105880.0,105870.0,2.57997565]
[1750748322445,0.00013695,105880.0,105870.0,2.42321565]
[1750748322654,0.00013695,105880.0,105870.0,2.66226804]
[1750748322873,0.00013695,105880.0,105870.0,2.55174156]
[1750748323291,0.00013695,105880.0,105870.0,2.05862364]
[1750748323492,0.03063695,105880.0,105870.0,1.17920631]
[1750748323693,0.03063695,105880.0,105870.0,1.81412423]
[1750748324542,0.03063695,105880.0,105870.0,1.83304423]
[1750748325469,0.03063695,105880.0,105870.0,1.81412423]
[1750748325965,0.03063695,105880.0,105870.0,1.03934716]
[1750748326131,0.03063695,105880.0,105870.0,0.89742716]
[1750748326337,0.03063695,105880.0,105870.0,1.23742716]
[1750748326541,0.03063695,105880.0,105870.0,1.16253125]
[1750748327095,0.03063695,105880.0,105870.0,0.96445125]
[1750748327801,0.03063695,105880.0,105870.0,1.16253125]
[1750748327994,0.03063695,105880.0,105870.0,0.85440854]
[1750748328201,0.03063695,105880.0,105870.0,1.06702939]
[1750748328539,0.03063695,105880.0,105870.0,1.05248854]
[1750748329323,0.03063695,105880.0,105870.0,1.06702939]
[1750748330716,0.03063695,105880.0,105870.0,0.83551844]
[1750748330939,0.31101402,105880.0,105870.0,0.013]
[1750748331166,0.31101402,105880.0,105870.0,0.16968]
[1750748331167,0.03063695,105880.0,105870.0,0.16968]
[1750748331684,0.03063695,105880.0,105870.0,0.16268]
[1750748331906,0.03063695,105880.0,105870.0,0.16368]
[1750748332351,0.03063695,105880.0,105870.0,0.37148155]
[1750748332608,0.03063695,105880.0,105870.0,0.37048164]
[1750748332829,0.03063695,105880.0,105870.0,0.35503637]
[1750748333032,0.03163695,105880.0,105870.0,0.35503628]
[1750748333246,0.03163695,105880.0,105870.0,0.34559092]
[1750748333654,0.03363695,105880.0,105870.0,0.35503646]
[1750748333862,0.03363695,105880.0,105870.0,0.36448182]
[1750748334061,0.03363695,105880.0,105870.0,0.36448191]
[1750748334329,0.03363695,105880.0,105870.0,0.35503646]
[1750748334526,0.03363695,105880.0,105870.0,0.36448182]
[1750748335156,0.03363695,105880.0,105870.0,0.36448191]
[1750748335386,0.03363695,105880.0,105870.0,0.37392727]
[1750748336001,0.03363695,105880.0,105870.0,0.34559092]
[1750748336210,0.03363695,105880.0,105870.0,0.15668]
[1750748336419,0.03363695,105880.0,105870.0,0.16612554]
[1750748336646,0.03363695,105880.0,105870.0,0.36448182]